Cogmind - Beta 15 @@@ ROGUE MODE // 2025.10.15 @ 23:53:43 Player: Auto Result: Destroyed by G-47 Trooper with Particle Gun Performance ------------- Evolutions (0) 0 Regions Visited (2) 400 Robots Destroyed (11) 55 Value Destroyed (286) 286 Prototype IDs (2) 40 Alien Tech Used (0) 0 Bonus (0) 0 TOTAL SCORE: 781 Bonus ------- None Cogmind --------- Core Integrity 0/250 Matter 201/300 Energy 100/100 System Corruption 0% Temperature Cool (9) Movement Walking (120) Location -10/Mines Parts ------- > --- POWER (1) -------- (None) > --- PROPULSION (2) --- Aluminum Leg Aluminum Leg > --- UTILITY (2) ------ Improved Heat Sink Medium Storage Unit > --- WEAPON (2) ------- Assault Rifle Light Assault Rifle > --- INVENTORY (10) --- Light Treads Light Treads Aluminum Leg Aluminum Leg Heat Sink Small Storage Unit EM Pulse Gun Rocket Launcher Welding Torch Peak State ------------ > --- POWER ------------ Ion Engine > --- PROPULSION ------- Aluminum Leg Aluminum Leg > --- UTILITY ---------- Improved Heat Sink Medium Storage Unit > --- WEAPON ----------- Small Laser Rocket Launcher > --- INVENTORY -------- Light Ion Engine Light Treads Light Treads Aluminum Leg Aluminum Leg Heat Sink Small Storage Unit EM Pulse Gun Assault Rifle Welding Torch [Rating: 11] Favorites ----------- Power Ion Engine Engine Ion Engine Propulsion Aluminum Leg Leg Aluminum Leg Utility Medium Storage Unit Device Improved Heat Sink Storage Medium Storage Unit Weapon Assault Rifle Energy Gun Small Laser Ballistic Gun Assault Rifle Launcher Rocket Launcher Build | -11 -10 -10 ------- Run | Yrd Mat Min Slots Evolved . | . . . Power . | . . . Propulsion . | . . . Utility . | . . . Weapon . | . . . Parts Attached 16 | 6 7 3 Power 4 | 1 2 1 Engine 4 | 1 2 1 Core . | . . . Reactor . | . . . Propulsion 3 | 2 1 . Treads . | . . . Leg 3 | 2 1 . Wheel . | . . . Hover . | . . . Flight . | . . . Utility 4 | 1 3 . Device 2 | . 2 . Storage 2 | 1 1 . Processor . | . . . Hackware . | . . . Protection . | . . . Artifact . | . . . Weapon 5 | 2 1 2 Energy Gun 2 | 1 1 . Energy Cannon . | . . . Ballistic Gun 2 | 1 . 1 Ballistic Cannon . | . . . Launcher 1 | . . 1 Special Weapon . | . . . Impact Weapon . | . . . Slashing Weapon . | . . . Piercing Weapon . | . . . Special Melee Weapon . | . . . Unidentified Prototypes . | . . . Parts Lost 3 | . . 3 Power 2 | . . 2 Propulsion . | . . . Utility . | . . . Weapon 1 | . . 1 Highest Loss Streak 3 | . . 3 To Critical Strikes . | . . . Average Backups 9 | 2 9 9 Power . | . 1 . Propulsion 5 | 1 5 4 Utility 1 | . 1 2 Weapon 1 | . 1 1 Tool/Special . | . . . Unused Backups 6 | . 1 5 Power . | . . . Propulsion 6 | . 1 5 Utility . | . . . Weapon . | . . . Tool/Special . | . . . Average Slot Usage (%) 98 | . 98 99 Engine 13 | . 14 13 Leg 28 | . 28 28 Device 12 | . 12 14 Storage 14 | . 14 14 Energy Gun 13 | . 14 12 Ballistic Gun 14 | . 13 15 Peak Build Rating 11 | 6 10 11 Average Rating 9 | 4 9 10 On Entrance 5 | . 6 10 Naked Turns . | . . . Heaviest Build 21 | 13 19 21 Greatest Support 20 | 20 20 20 Greatest Overweight (x) 2 | 2 . 1 Average Overweight (x) . | . . . Largest Inventory Capacity 10 | 8 10 10 Average Capacity 9 | 7 9 10 Most Carried 10 | 6 10 10 Average Carried 9 | 3 9 9 Final Capacity 10 | 8 10 10 Final Carried 10 | 6 10 9 Class Distribution -------------------- 100% | Mutant Dominant Class ---------------- Mutant | -10/Materials Mutant | -10/Mines Resources | -11 -10 -10 ----------- Run | Yrd Mat Min Matter Collected 429 | 209 140 80 Remotely . | . . . Salvage Created 334 | . 272 62 Parts 29 | . 19 10 Haulers Intercepted . | . . . Recyclers Shooed 1 | . . 1 Parts Field Recycled . | . . . Retrieved Matter . | . . . Parts Self-Destructed . | . . . Prevented . | . . . Kills | -11 -10 -10 ------- Run | Yrd Mat Min Combat Hostiles Destroyed 10 | . 6 4 Guns 10 | . 6 4 Classes Destroyed 3 | . 2 1 Watcher 1 | . 1 . Swarmer 4 | . . 4 Grunt 6 | . 6 . Best Kill Streak 4 | . 2 4 Combat Bots Only 4 | . 2 4 Max Kills in Single Turn 2 | . 1 2 Gunslinging 1 | . . 1 Exploded . | . . . Melee . | . . . Uniques/NPCs Destroyed . | . . . Combat | -11 -10 -10 -------- Run | Yrd Mat Min Hostile Shots Fired 104 | . 26 78 Missed 28 | . 6 22 Hits 76 | . 20 56 Projectile 76 | . 20 56 Critical Strikes 2 | . 1 1 Damage Taken 792 | . 249 543 Core 260 | . 67 193 Absorbed by Shields . | . . . Core Remaining (%) 100 | 100 . . Volleys Fired 49 | . 35 14 Largest 2 | . 2 2 Hottest 80 | . 80 60 Shots Fired 98 | . 70 28 Gun 98 | . 70 28 Cannon . | . . . Launcher . | . . . Special . | . . . Kinetic 57 | . 34 23 Thermal 40 | . 35 5 Explosive . | . . . Electromagnetic 1 | . 1 . Robot Hit Streak 12 | . 12 7 Robot Miss Streak 4 | . 2 4 Penetration Max . | . . . Secondary Targets 2 | . . 2 Max Gunslinging Chain 1 | . . 1 Shots Hit Robots 46 | . 28 18 Core Hits 23 | . 15 8 Critical Kills . | . . . Critical Parts Destroyed . | . . . Critical Strikes . | . . . Melee Attacks . | . . . Impact . | . . . Slashing . | . . . Piercing . | . . . Sneak Attacks . | . . . Combat Hostiles . | . . . Follow-up Attacks . | . . . Damage Inflicted 554 | . 342 212 Guns 554 | . 342 212 Cannons . | . . . Explosions . | . . . Melee . | . . . Ramming . | . . . Kinetic 365 | . 187 178 Thermal 189 | . 155 34 Explosive . | . . . Electromagnetic . | . . . Impact . | . . . Slashing . | . . . Piercing . | . . . Highest Corruption . | . . . Average Corruption . | . . . Corruption Purged . | . . . Corruption Blocked . | . . . Overload Shots . | . . . Overflow Damage . | . . . Projectiles . | . . . Explosions . | . . . Melee . | . . . Knockbacks . | . . . Impact . | . . . Kinetic . | . . . Secondary . | . . . Self-Inflicted Damage . | . . . Shots . | . . . Rammed . | . . . Targets Rammed . | . . . Kicked . | . . . Crushed . | . . . Highest Temperature 63 | . 63 8 Average Temperature 43 | . 44 8 Received Heat Transfer 288 | . 156 132 Siege Activations . | . . . Martial Activations . | . . . Shielding Activations . | . . . Robots Disrupted . | . . . Combat Hostiles . | . . . Robots Corrupted . | . . . Combat Hostiles . | . . . Parts Fried . | . . . Impact Corruptions . | . . . Robots Melted . | . . . Combat Hostiles . | . . . Parts Melted 1 | . . 1 Heat Transferred 425 | . 350 75 Parts Sabotaged . | . . . Parts Stolen . | . . . Parts Stripped . | . . . Power Chain Reactions . | . . . Alert | -11 -10 -10 ------- Run | Yrd Mat Min Maximum Alert Level . | . . . Low Security (%) 100 | 100 100 100 Level 1 . | . . . Level 2 . | . . . Level 3 . | . . . Level 4 . | . . . Level 5 . | . . . High Security . | . . . Max Security . | . . . Peak Influence 100 | . 66 100 Initial . | . . . Average 8 | . 9 8 Influence Increases 339 | . 191 148 Destroy 0b10 Robot/C 200 | . 120 80 Destroy 0b10 Robot/NC 5 | . 5 . Destroy Leader 32 | . 32 . Successful Hack 26 | . 18 8 Destroy Structure 1 | . 1 . Lose Combat Pursuer 75 | . 15 60 Influence Decreases 259 | . 191 68 Time Decay 229 | . 191 38 Lost Part 30 | . . 30 Squads Dispatched 4 | . 4 . Investigation 3 | . 3 . Extermination . | . . . Reinforcement 1 | . 1 . Assault . | . . . Garrison . | . . . Intercept . | . . . Searches Triggered . | . . . Construction Impeded . | . . . Haulers Reinforced . | . . . Active Scanning Responses . | . . . Cargo Convoy Interrupts . | . . . Stealth | -11 -10 -10 --------- Run | Yrd Mat Min Distress Signals 1 | . . 1 Communications Jammed . | . . . Distress Signals . | . . . Times Spotted 25 | . 16 9 Peak Tracking Total 8 | . 3 8 Tactical Retreats 4 | . 1 3 Traps | -11 -10 -10 ------- Run | Yrd Mat Min Traps Triggered . | . . . Indirectly . | . . . Trap Hack Attempts . | . . . Triggered . | . . . Disarmed . | . . . Reprogrammed . | . . . Reused . | . . . Traps Extracted . | . . . Installed . | . . . Triggered . | . . . Machines | -11 -10 -10 ---------- Run | Yrd Mat Min Machines Disabled . | . . . Max in Single Turn . | . . . Machines Repaired . | . . . Machines Dismantled . | . . . Machines Sabotaged . | . . . Overloaded Fab Kills . | . . . Hacking | -11 -10 -10 --------- Run | Yrd Mat Min Machines Accessed 9 | . 8 1 Terminals 7 | . 6 1 Fabricators . | . . . Repair Stations . | . . . Recycling Units 2 | . 2 . Scanalyzers . | . . . Garrison Access . | . . . Total Hacks 33 | . 29 4 Successful 17 | . 15 2 Failed 16 | . 14 2 Catastrophic 1 | . . 1 Database Lockouts . | . . . Manual 27 | . 23 4 Terminals 26 | . 22 4 Fabricators . | . . . Repair Stations . | . . . Recycling Units 7 | . 7 . Scanalyzers . | . . . Garrison Access . | . . . Terminal Hacks 7 | . 5 2 Prototype ID Bank 1 | . 1 . Level Access Points 1 | . 1 . Branch Access Points 3 | . 1 2 Terminal Index 1 | . 1 . Recall Investigation 1 | . 1 . Fabricator Hacks . | . . . Repair Station Hacks . | . . . Recycling Unit Hacks 2 | . 2 . Retrieve Components 2 | . 2 . Scanalyzer . | . . . Garrison Access Hacks . | . . . Unauthorized Hacks 8 | . 8 . Terminals 6 | . 6 . Assimilate 1 | . 1 . Botnet 4 | . 4 . Operators 1 | . 1 . Fabricators . | . . . Repair Stations . | . . . Recycling Units 2 | . 2 . Reject 1 | . 1 . Recyclers 1 | . 1 . Scanalyzers . | . . . Garrison Access . | . . . Data Cores Recovered . | . . . Used . | . . . Hacking Detections 9 | . 8 1 Full Trace Events 7 | . 6 1 Feedback Events . | . . . Feedback Blocked . | . . . Robot Schematics Acquired . | . . . Robots Built . | . . . Authchips . | . . . Time . | . . . Total Robot Build Rating . | . . . Part Schematics Acquired . | . . . Parts Built . | . . . Authchips . | . . . Time . | . . . Total Part Build Rating . | . . . Parts Repaired . | . . . Time . | . . . Parts Recycled . | . . . Recycled Matter . | . . . Retrieved Matter . | . . . Retrieved Components 10 | . 10 . Parts Scanalyzed . | . . . Part Schematics Acquired . | . . . Parts Damaged . | . . . Bothacking | -11 -10 -10 ------------ Run | Yrd Mat Min Used RIF Installer . | . . . Robots Hacked . | . . . Non-combat . | . . . Combat . | . . . Robot Hacks Applied . | . . . Relay Couplers Released . | . . . Fabnet Peak Effective % . | . . . Robots Rewired . | . . . Allies Hacked . | . . . Hacks Repelled . | . . . Allies | -11 -10 -10 -------- Run | Yrd Mat Min Total Allies 1 | . 1 . Largest Group 1 | . 1 . Highest-Rated Group 10 | . 10 . Highest-Rated Ally 10 | . 10 . Total Orders 2 | . 2 . STAY 1 | . 1 . FOLLOW 1 | . 1 . Ally Attacks . | . . . Total Damage . | . . . Kills . | . . . Allies Corrupted . | . . . Allies Melted . | . . . Intel | -11 -10 -10 ------- Run | Yrd Mat Min Active Infowar (turns) . | . . . Robot Analysis Total . | . . . Derelict Logs Recovered 1 | . . 1 Drone Launches . | . . . Drone Recoveries . | . . . Exploration | -11 -10 -10 ------------- Run | Yrd Mat Min Turns Passed 1529 | 73 1212 244 Spaces Moved 673 | 53 475 145 Core 9 | 9 . . Treads . | . . . Legs 664 | 44 475 145 Wheels . | . . . Hover . | . . . Flight . | . . . Fastest Speed 50 | 50 120 120 Average Speed 119 | 110 120 121 Slowest Speed 190 | 150 120 190 Overloaded Moves . | . . . Propulsion Burnouts . | . . . Robots Hopped . | . . . Potential Cave-ins . | . . . Cave-ins Triggered . | . . . Exploration Rate (%) 35 | 5 68 33 Regions Visited 2 Branch Regions 1 Pre-discovered Areas 1 | . . 1 Known Exits Taken 1 | . 1 . Unknown Exits Taken 1 | 1 . . Scrap Searched 1 | . . 1 Spaces Dug . | . . . Terrain Destroyed . | . . . Melee . | . . . Projectile . | . . . AOE . | . . . Terrain Rammed . | . . . Walls Destroyed . | . . . Machines Disabled . | . . . Actions | -11 -10 -10 --------- Run | Yrd Mat Min Total 1299 | 65 1048 186 Wait 540 | . 520 20 Move 671 | 52 474 145 Hop . | . . . Pick Up 13 | 7 5 1 Fast Attach 8 | 5 2 1 Attach 2 | 1 . 1 Detach . | . . . Swap 9 | . 6 3 Drop 7 | . 6 1 Fire 49 | . 35 14 Melee . | . . . Ram . | . . . Kick . | . . . Crush . | . . . Escape Stasis . | . . . Rewire . | . . . Trap . | . . . Miscellaneous . | . . . Route ------- -11/Scrapyard -10/Materials (discovered 4 exits: *Mat x3 / *Min) -10/Mines (discovered 1 exit: *Mat) History --------- Turn | Location | Event 6 | -11/Scrapyard | Discovered new exit (range 16) 74 | -11/Scrapyard | Entered Materials 314 | -10/Materials | Build established: Mutant 1195 | -10/Materials | Discovered new exit (range 4) 1215 | -10/Materials | Identified exit to Mines 1215 | -10/Materials | Identified exit to Materials 1286 | -10/Materials | Entered Mines 1301 | -10/Mines | Discovered exit to Materials (range 11) 1318 | -10/Mines | Received a Rocket Launcher from a helpful Derelict 1374 | -10/Mines | YI-UF0 nonchalantly dropped a Grenade Launcher on the ground 1453 | -10/Mines | Learned location of Zion (-7) 1491 | -10/Mines | Core integrity fell below 50% 1515 | -10/Mines | Core integrity fell below 20% 1530 | -10/Mines | Destroyed by G-47 Trooper with Particle Gun Last Messages --------------- 01453_ Acquired derelict log, extracted data. World map updated: -7/Zion. 01475_ U-05 Engineer destroyed. 01499_ Lgt. Ion Engine melted. 01499_ S-10 Pest destroyed. 01499_ Switching to secondary target: S-10 Pest. 01499_ S-10 Pest destroyed. 01502_ Acquired 16 matter. 01503_ Sml. Laser destroyed. 01504_ Acquired Lgt. Assault Rifle. 01514_ Lgt. Ion Engine destroyed. 01514_ Critical hit (Burn: +37). 01514_ S-10 Pest destroyed. 01514_ Switching to secondary target: G-47 Trooper. 01515_ R-06 Scavenger collects Flight Unit. 01519_ R-06 Scavenger collects Lgt. Ion Engine. 01523_ R-06 Scavenger collects Lgt. Assault Rifle. 01524_ S-10 Pest destroyed. 01526_ Ion Engine destroyed. 01526_ R-06 Scavenger sends out distress signal. Map ----- +----------------------------------------------------+ | ???????????????????? ??# #?????## ] ## ##? | | ???????????????????? ??# #??????## ######?? | | ????????????????????# ?# #??????## ##??????? | | ????????????????????# ?# ?????### #???????? | | ????????????????????? ????## #???????? | | ?????????????????????# ????# ##??#????? | | ?????????????????????? ????# ####?## ????? | | ?????????????????????? ???## ##???? ????? | | ??????????????????????? ???# ##???? ????? | | ???????????????????????? ##### #???? ????? | | ????????????????????????# ## #???? ????? | | ?????????????????????#??# ## ### ##???? #????? | | ?????????????????????# ##[* #?## ###?????# #????? | | ?????????????????????# ! ####??# #???????# ????? | | ?????????????????????#### #?????# #???????# #????? | | ????????????????????????# #?????# #???????# #????? | | ????????????????????????# ####### ######### #????? | | ????????????????????????# ## #???## | | ????????????????????????# ############ #??## | | ?????????????????######## ## #??????????# #### | | ?????????? ## #??????????# | | ??????????# ## ##?????????##### | | ?????????????###### ######## ##???????????# | | ?????????????????????####### #???????????# | | ?????????????????????# =% %gr ##??????????# | | ?????????????????????# =%@=* #??????????## | | ?????????????????????# ####t #???????????## | | ?????????????????????# #??## #????????????# | | ?????????????????????# #???# ##????????????## | | ?????????????????????# #???## %#??????????????## | | ?????????????????????# #????? #???????????????# | | ?????????????????????# #????? #???????????????? | | ?????????????????????# #????? ???????????????? | | ?????????????????????# #????? ??????????????? | | ?????????????????????# #????? ?????????????? | | ?????????????????????# ?????? ?????????????? | | ?????????????????????# ??????## #????????????? | | ?????????????????????# ???????? ? ??????????????? | | ?????????????????????# ?????????????????????????? | | ?????????????????????? ?????????????????????????? | | ?????????????????????? ?????????????????????????? | | ??????????????????????##?????????????????????????? | | ?????????????????????????????????????????????????? | | ?????????????????????????????????????????????????? | | ?????????????????????????????????????????????????? | | ?????????????????????????????????????????????????? | | ?????????????????????????????????????????????????? | | ?????????????????????????????????????????????????? | | ?????????????????????????????????????????????????? | | ?????????????????????????????????????????????????? | +----------------------------------------------------+ Best States ------------- Heat Dissipation 39 Energy Generation 10 Energy Capacity 250 Matter Stores 300 Matter Capacity 300 Sight Range 16 Terrain Scan Density 10 Evasion (%) 55 Item Schematics ----------------- None Robot Schematics ------------------ None Fabricated ------------ Nothing Repaired ---------- Nothing Alien Tech Used ----------------- None Achievements -------------- None Challenges ------------ None Game ------ Seed ImpulseWardroneCutter Manual? 0 Play Time 00:13:44 Cumulative 60.9 hours Start 2025.10.15 @ 23:42:07 End 2025.10.15 @ 23:53:43 Sessions 1 Manual Loads 0 Difficulty Rogue Special Mode None Game No. 44 Rogue 19 Adventurer 25 Explorer 0 Win Type - Total 0 Types 0/0/0/0/0/0/0/0/0/0 Lore% 17 Gallery% 30 Achievement% 29 Wizard Run 0 Options --------- Layout 0 ASCII 0 Keyboard 0 Movement Mouse Keybinds 0 Fullscreen 2 Font 18/SmallcapsGlow Map View 76x50 Zoom Use 0% Tactical HUD 1 Map Filters NONE Filters NONE Steam 1 RUN: 219a2b83-4ec5-42c6-bd45-a4a264204675